fUSD/lending_fUSD_20260616
["ID","MTS","AMOUNT","RATE_DAILY","PERIOD"]
[425205659,1781577051000,-777.91,0.00026,2]
[425205661,1781577051000,-180.0,0.00026008,2]
[425205663,1781577051000,-237.02,0.00026027,7]
[425205662,1781577051000,-162.25191701,0.00026027,3]
[425205664,1781577051000,-158.57,0.00026027,10]
[425205665,1781577051000,-150.0,0.00026028,2]
[425205667,1781577051000,-1187.91,0.00026125,2]
[425205639,1781577051000,-500.0,0.00025493,2]
[425205660,1781577051000,-550.0,0.00026,2]
[425205633,1781577051000,-500.0,0.00025493,2]
[425205612,1781577051000,-268.36,0.00025,2]
[425205630,1781577051000,-500.0,0.00025493,2]
[425205609,1781577051000,-268.36,0.00025,2]
[425205668,1781577051000,-463.86,0.00026137,2]
[425205607,1781577051000,-268.36,0.00025,2]
[425205611,1781577051000,-268.36,0.00025,2]
[425205608,1781577051000,-268.36,0.00025,2]
[425205610,1781577051000,-268.36,0.00025,2]
[425205614,1781577051000,-268.36,0.00025,2]
[425205624,1781577051000,-1187.91,0.00025245,2]
[425205613,1781577051000,-268.36,0.00025,2]
[425205616,1781577051000,-268.36,0.00025,2]
[425205625,1781577051000,-212.30165946,0.00025397,2]
[425205617,1781577051000,-154.41,0.00025,2]
[425205621,1781577051000,-152.0,0.00025057,5]
[425205615,1781577051000,-268.36,0.00025,2]
[425205622,1781577051000,-1641.94,0.000251,7]
[425205618,1781577051000,-383.0,0.00025014,2]
[425205619,1781577051000,-1359.0,0.00025014,2]
[425205620,1781577051000,-1228.0,0.00025014,2]
[425205623,1781577051000,-500.0,0.00025188,2]
[425205634,1781577051000,-500.0,0.00025493,2]
[425205636,1781577051000,-500.0,0.00025493,2]
[425205628,1781577051000,-500.0,0.00025493,2]
[425205626,1781577051000,-248.82320762,0.00025397,2]
[425205635,1781577051000,-500.0,0.00025493,2]
[425205632,1781577051000,-500.0,0.00025493,2]
[425205637,1781577051000,-500.0,0.00025493,2]
[425205638,1781577051000,-500.0,0.00025493,2]
[425205631,1781577051000,-500.0,0.00025493,2]
[425205627,1781577051000,-1553.62240062,0.00025479,2]
[425205629,1781577051000,-500.0,0.00025493,2]
[425205666,1781577051000,-152.0,0.0002604,7]
[425205682,1781577051000,-19765.62,0.00026619,7]
[425205672,1781577051000,-1105.16,0.0002638,7]
[425205703,1781577051000,-151.0,0.00027,7]
[425205707,1781577051000,-151.0,0.00027,7]
[425205706,1781577051000,-151.0,0.00027,7]
[425205705,1781577051000,-151.0,0.00027,7]
[425205708,1781577051000,-151.0,0.00027,7]
[425205713,1781577051000,-151.0,0.00027,7]
[425205711,1781577051000,-151.0,0.00027,7]
[425205710,1781577051000,-151.0,0.00027,7]
[425205712,1781577051000,-151.0,0.00027,7]
[425205709,1781577051000,-151.0,0.00027,7]
[425205716,1781577051000,-151.0,0.00027,7]
[425205718,1781577051000,-151.0,0.00027,7]
[425205719,1781577051000,-151.0,0.00027,7]
[425205715,1781577051000,-151.0,0.00027,7]
[425205728,1781577051000,-151.0,0.00027,7]
[425205726,1781577051000,-151.0,0.00027,7]
[425205725,1781577051000,-151.0,0.00027,7]
[425205717,1781577051000,-151.0,0.00027,7]
[425205723,1781577051000,-151.0,0.00027,7]
[425205720,1781577051000,-151.0,0.00027,7]
[425205722,1781577051000,-151.0,0.00027,7]
[425205727,1781577051000,-151.0,0.00027,7]
[425205724,1781577051000,-151.0,0.00027,7]
[425205730,1781577051000,-151.0,0.00027,7]
[425205729,1781577051000,-151.0,0.00027,7]
[425205733,1781577051000,-151.0,0.00027,7]
[425205732,1781577051000,-151.0,0.00027,7]
[425205731,1781577051000,-151.0,0.00027,7]
[425205670,1781577051000,-21253.23,0.000262,2]
[425205714,1781577051000,-151.0,0.00027,7]
[425205721,1781577051000,-151.0,0.00027,7]
[425205701,1781577051000,-151.0,0.00027,7]
[425205704,1781577051000,-151.0,0.00027,7]
[425205673,1781577051000,-212.30165946,0.00026397,2]
[425205675,1781577051000,-283.6028863,0.00026397,2]
[425205671,1781577051000,-1604.8,0.00026296,2]
[425205674,1781577051000,-293.74901948,0.00026397,2]
[425205677,1781577051000,-1187.91,0.00026419,2]
[425205687,1781577051000,-151.0,0.00026827,2]
[425205688,1781577051000,-2000.0,0.00026849,7]
[425205686,1781577051000,-300.0,0.00026774,10]
[425205676,1781577051000,-248.82320762,0.00026397,2]
[425205678,1781577051000,-382.96720828,0.00026452,2]
[425205683,1781577051000,-5669.65,0.00026667,2]
[425205681,1781577051000,-300.0,0.00026595,10]
[425205680,1781577051000,-152.0,0.00026532,8]
[425205685,1781577051000,-500.0,0.00026722,2]
[425205679,1781577051000,-1641.94,0.000265,7]
[425205702,1781577051000,-151.0,0.00027,7]
[425205684,1781577051000,-1553.62240062,0.00026712,2]
[425205694,1781577051000,-151.0,0.00027,7]
[425205696,1781577051000,-151.0,0.00027,7]
[425205698,1781577051000,-151.0,0.00027,7]
[425205700,1781577051000,-151.0,0.00027,7]
[425205693,1781577051000,-151.0,0.00027,7]
[425205697,1781577051000,-151.0,0.00027,7]
[425205695,1781577051000,-151.0,0.00027,7]
[425205699,1781577051000,-151.0,0.00027,7]
[425205690,1781577051000,-151.0,0.00027,7]
[425205689,1781577051000,-913.06141638,0.000269,2]
[425205691,1781577051000,-151.0,0.00027,7]
[425205692,1781577051000,-151.0,0.00027,7]
[425205755,1781577052000,-151.0,0.00027,7]
[425205749,1781577052000,-151.0,0.00027,7]
[425205766,1781577052000,-151.0,0.00027,7]
[425205756,1781577052000,-151.0,0.00027,7]
[425205767,1781577052000,-151.0,0.00027,7]
[425205751,1781577052000,-151.0,0.00027,7]
[425205757,1781577052000,-151.0,0.00027,7]
[425205760,1781577052000,-151.0,0.00027,7]
[425205761,1781577052000,-151.0,0.00027,7]
[425205759,1781577052000,-151.0,0.00027,7]
[425205763,1781577052000,-151.0,0.00027,7]
[425205758,1781577052000,-151.0,0.00027,7]
[425205762,1781577052000,-151.0,0.00027,7]
[425205746,1781577052000,-151.0,0.00027,7]
[425205764,1781577052000,-151.0,0.00027,7]
[425205748,1781577052000,-151.0,0.00027,7]
[425205740,1781577052000,-151.0,0.00027,7]
[425205747,1781577052000,-151.0,0.00027,7]
[425205765,1781577052000,-151.0,0.00027,7]
[425205738,1781577052000,-151.0,0.00027,7]
[425205739,1781577052000,-151.0,0.00027,7]
[425205735,1781577052000,-151.0,0.00027,7]
[425205737,1781577052000,-151.0,0.00027,7]
[425205741,1781577052000,-151.0,0.00027,7]
[425205734,1781577052000,-151.0,0.00027,7]
[425205736,1781577052000,-151.0,0.00027,7]
[425205744,1781577052000,-151.0,0.00027,7]
[425205743,1781577052000,-151.0,0.00027,7]
[425205745,1781577052000,-151.0,0.00027,7]
[425205742,1781577052000,-1597.75255128,0.00027,2]
[425205750,1781577052000,-151.0,0.00027,7]
[425205754,1781577052000,-151.0,0.00027,7]
[425205753,1781577052000,-151.0,0.00027,7]
[425205752,1781577052000,-151.0,0.00027,7]
[425205770,1781577052000,-151.0,0.00027,7]
[425205795,1781577052000,-454.0,0.00027123,2]
[425205769,1781577052000,-151.0,0.00027,7]
[425205786,1781577052000,-151.0,0.00027,7]
[425205783,1781577052000,-151.0,0.00027,7]
[425205805,1781577052000,-166.34495867,0.00027216,7]
[425205794,1781577052000,-152.0,0.00027123,2]
[425205792,1781577052000,-1187.91,0.00027006,2]
[425205793,1781577052000,-152.0,0.00027024,9]
[425205796,1781577052000,-454.0,0.00027123,2]
[425205797,1781577052000,-575.0,0.00027137,2]
[425205798,1781577052000,-250.0,0.00027155,8]
[425205799,1781577052000,-1072.01,0.00027171,7]
[425205800,1781577052000,-207.18441686,0.00027216,7]
[425205801,1781577052000,-150.31196967,0.00027216,7]
[425205804,1781577052000,-175.63748277,0.00027216,7]
[425205803,1781577052000,-160.72058737,0.00027216,7]
[425205768,1781577052000,-151.0,0.00027,7]
[425205782,1781577052000,-151.0,0.00027,7]
[425205785,1781577052000,-151.0,0.00027,7]
[425205802,1781577052000,-167.61817801,0.00027216,7]
[425205781,1781577052000,-151.0,0.00027,7]
[425205784,1781577052000,-151.0,0.00027,7]
[425205775,1781577052000,-151.0,0.00027,7]
[425205777,1781577052000,-151.0,0.00027,7]
[425205771,1781577052000,-151.0,0.00027,7]
[425205778,1781577052000,-151.0,0.00027,7]
[425205776,1781577052000,-151.0,0.00027,7]
[425205774,1781577052000,-151.0,0.00027,7]
[425205773,1781577052000,-151.0,0.00027,7]
[425205788,1781577052000,-151.0,0.00027,7]
[425205779,1781577052000,-151.0,0.00027,7]
[425205789,1781577052000,-151.0,0.00027,7]
[425205791,1781577052000,-174.0,0.00027,7]
[425205790,1781577052000,-151.0,0.00027,7]
[425205780,1781577052000,-151.0,0.00027,7]
[425205772,1781577052000,-151.0,0.00027,7]
[425205787,1781577052000,-151.0,0.00027,7]
[425205841,1781577053000,-165.47254998,0.0002724,7]
[425205836,1781577053000,-208.90717116,0.0002724,7]
[425205840,1781577053000,-185.69261319,0.0002724,7]
[425205842,1781577053000,-168.38664626,0.0002724,7]
[425205835,1781577053000,-162.33771559,0.0002724,7]
[425205837,1781577053000,-162.48943549,0.0002724,7]
[425205832,1781577053000,-155.22646924,0.0002724,7]
[425205844,1781577053000,-163.59558738,0.0002724,7]
[425205833,1781577053000,-178.21238746,0.0002724,5]
[425205838,1781577053000,-173.17490805,0.0002724,7]
[425205845,1781577053000,-213.65022496,0.0002724,7]
[425205856,1781577053000,-500.0,0.00027397,2]
[425205843,1781577053000,-150.49792976,0.0002724,7]
[425205847,1781577053000,-155.92185816,0.0002724,7]
[425205853,1781577053000,-500.37657169,0.00027397,2]
[425205846,1781577053000,-167.50084258,0.0002724,7]
[425205854,1781577053000,-155.59064432,0.00027397,2]
[425205855,1781577053000,-165.88213841,0.00027397,7]
[425205849,1781577053000,-175.72446321,0.0002724,7]
[425205851,1781577053000,-500.0,0.00027342,2]
[425205852,1781577053000,-286.04580623,0.00027397,7]
[425205850,1781577053000,-1187.91,0.00027299,2]
[425205834,1781577053000,-150.22364828,0.0002724,7]
[425205839,1781577053000,-152.99729395,0.0002724,7]
[425205831,1781577053000,-188.53010966,0.0002724,7]
[425205810,1781577053000,-167.44421745,0.00027217,7]
[425205829,1781577053000,-223.73526726,0.00027239,7]
[425205815,1781577053000,-301.01198003,0.00027239,7]
[425205806,1781577053000,-180.65922312,0.00027216,7]
[425205814,1781577053000,-158.17532335,0.00027239,2]
[425205808,1781577053000,-158.23861652,0.00027216,7]
[425205807,1781577053000,-192.30239402,0.00027216,7]
[425205809,1781577053000,-193.89183494,0.00027217,7]
[425205812,1781577053000,-152.60088285,0.00027232,7]
[425205858,1781577053000,-500.0,0.00027397,2]
[425205811,1781577053000,-155.96900672,0.00027217,7]
[425205813,1781577053000,-154.86445224,0.00027232,7]
[425205817,1781577053000,-207.43114879,0.00027239,7]
[425205816,1781577053000,-159.63790259,0.00027239,7]
[425205820,1781577053000,-177.30394443,0.00027239,7]
[425205818,1781577053000,-170.36038087,0.00027239,7]
[425205819,1781577053000,-167.66268655,0.00027239,7]
[425205822,1781577053000,-182.35506519,0.00027239,7]
[425205825,1781577053000,-207.36299475,0.00027239,7]
[425205821,1781577053000,-235.53319167,0.00027239,7]
[425205824,1781577053000,-156.37202734,0.00027239,7]
[425205823,1781577053000,-174.58335875,0.00027239,7]
[425205826,1781577053000,-151.18147976,0.00027239,7]
[425205828,1781577053000,-163.77973762,0.00027239,7]
[425205827,1781577053000,-186.40283555,0.00027239,7]
[425205830,1781577053000,-202.16394007,0.00027239,7]
[425205862,1781577053000,-500.0,0.00027397,2]
[425205848,1781577053000,-174.14070075,0.0002724,7]
[425205866,1781577053000,-500.0,0.00027397,2]
[425205888,1781577053000,-391.801891,0.00027397,2]
[425205889,1781577053000,-391.801891,0.00027397,2]
[425205894,1781577053000,-391.801891,0.00027397,2]
[425205892,1781577053000,-391.801891,0.00027397,2]
[425205891,1781577053000,-391.801891,0.00027397,2]
[425205899,1781577053000,-391.801891,0.00027397,2]
[425205895,1781577053000,-391.801891,0.00027397,2]
[425205893,1781577053000,-391.801891,0.00027397,2]
[425205897,1781577053000,-391.801891,0.00027397,2]
[425205890,1781577053000,-391.801891,0.00027397,2]
[425205898,1781577053000,-391.801891,0.00027397,2]
[425205887,1781577053000,-391.801891,0.00027397,2]
[425205910,1781577053000,-151.0,0.00027397,2]
[425205909,1781577053000,-151.0,0.00027397,2]
[425205901,1781577053000,-391.801891,0.00027397,2]
[425205902,1781577053000,-391.801893,0.00027397,2]
[425205905,1781577053000,-151.0,0.00027397,2]
[425205904,1781577053000,-151.0,0.00027397,2]
[425205907,1781577053000,-152.042375,0.00027397,2]
[425205908,1781577053000,-1000.0,0.00027397,20]
[425205903,1781577053000,-151.0,0.00027397,2]
[425205906,1781577053000,-288.517671,0.00027397,2]
[425205867,1781577053000,-500.0,0.00027397,2]
[425205911,1781577053000,-151.0,0.00027397,2]
[425205900,1781577053000,-391.801891,0.00027397,2]
[425205886,1781577053000,-391.801891,0.00027397,2]
[425205896,1781577053000,-391.801891,0.00027397,2]
[425205882,1781577053000,-919.36,0.00027397,2]
[425205861,1781577053000,-500.0,0.00027397,2]
[425205884,1781577053000,-391.801891,0.00027397,2]
[425205859,1781577053000,-500.0,0.00027397,2]
[425205865,1781577053000,-500.0,0.00027397,2]
[425205864,1781577053000,-500.0,0.00027397,2]
[425205863,1781577053000,-500.0,0.00027397,2]
[425205860,1781577053000,-500.0,0.00027397,2]
[425205869,1781577053000,-500.0,0.00027397,2]
[425205868,1781577053000,-500.0,0.00027397,2]
[425205873,1781577053000,-500.0,0.00027397,15]
[425205870,1781577053000,-500.0,0.00027397,2]
[425205871,1781577053000,-351.89825629,0.00027397,2]
[425205857,1781577053000,-500.0,0.00027397,2]
[425205872,1781577053000,-150.0,0.00027397,2]
[425205876,1781577053000,-500.0,0.00027397,15]
[425205883,1781577053000,-391.801891,0.00027397,2]
[425205885,1781577053000,-391.801891,0.00027397,2]
[425205880,1781577053000,-343.27777432,0.00027397,2]
[425205879,1781577053000,-1500.0,0.00027397,2]
[425205881,1781577053000,-300.0,0.00027397,2]
[425205874,1781577053000,-500.0,0.00027397,15]
[425205877,1781577053000,-500.0,0.00027397,15]
[425205875,1781577053000,-500.0,0.00027397,15]
[425205878,1781577053000,-502.58377949,0.00027397,15]
[425205938,1781577054000,-5978.0,0.000275,7]
[425205939,1781577054000,-3499.82,0.000275,2]
[425205943,1781577054000,-160.0,0.00027651,3]
[425205944,1781577054000,-575.0,0.00027671,2]
[425205942,1781577054000,-1553.62240062,0.00027534,2]
[425205945,1781577054000,-202.41649353,0.00027685,2]
[425205946,1781577054000,-21253.23,0.000278,2]
[425205937,1781577054000,-500.0,0.000275,7]
[425205949,1781577054000,-470.16957022,0.00027859,2]
[425205947,1781577054000,-521.04387466,0.00027807,2]
[425205948,1781577054000,-521.04387466,0.00027843,2]
[425205953,1781577054000,-150.0,0.00027905,2]
[425205951,1781577054000,-188.91954552,0.00027869,2]
[425205950,1781577054000,-348.0,0.00027867,2]
[425205954,1781577054000,-150.0,0.00027905,2]
[425205955,1781577054000,-150.0,0.00027905,2]
[425205957,1781577054000,-521.04387466,0.00027905,2]
[425205964,1781577054000,-521.04387466,0.00027969,2]
[425205956,1781577054000,-150.0,0.00027905,2]
[425205959,1781577054000,-521.04387466,0.00027932,2]
[425205960,1781577054000,-3646.0,0.00027942,2]
[425205963,1781577054000,-1553.62240062,0.00027945,2]
[425205941,1781577054000,-500.0,0.00027523,14]
[425205952,1781577054000,-521.04387466,0.00027879,2]
[425205935,1781577054000,-5218.67,0.000274,2]
[425205916,1781577054000,-151.0,0.00027397,2]
[425205934,1781577054000,-5218.67,0.000274,2]
[425205962,1781577054000,-521.04387466,0.00027943,2]
[425205914,1781577054000,-151.0,0.00027397,2]
[425205919,1781577054000,-151.0,0.00027397,2]
[425205920,1781577054000,-151.0,0.00027397,2]
[425205918,1781577054000,-151.0,0.00027397,2]
[425205915,1781577054000,-151.0,0.00027397,2]
[425205912,1781577054000,-151.0,0.00027397,2]
[425205913,1781577054000,-151.0,0.00027397,2]
[425205917,1781577054000,-151.0,0.00027397,2]
[425205923,1781577054000,-229.329486,0.00027397,2]
[425205924,1781577054000,-165.34917543,0.00027397,7]
[425205921,1781577054000,-238.014868,0.00027397,2]
[425205922,1781577054000,-29426.34,0.00027397,10]
[425205925,1781577054000,-190.42591031,0.00027397,7]
[425205931,1781577054000,-2151.18,0.000274,7]
[425205930,1781577054000,-2048.08,0.000274,7]
[425205927,1781577054000,-150.0,0.00027397,2]
[425205926,1781577054000,-151.99422392,0.00027397,30]
[425205928,1781577054000,-349.164009,0.000274,7]
[425205929,1781577054000,-349.164009,0.000274,14]
[425205932,1781577054000,-5218.67,0.000274,2]
[425205936,1781577054000,-5218.67,0.000274,2]
[425205933,1781577054000,-5218.67,0.000274,2]
[425205940,1781577054000,-152.0,0.00027516,10]
[425205958,1781577054000,-521.04387466,0.00027911,2]
[425206009,1781577054000,-332.68991734,0.00028504,7]
[425205967,1781577054000,-2151.18,0.00028,7]
[425205991,1781577054000,-575.0,0.00028205,3]
[425205993,1781577054000,-521.04387466,0.00028251,2]
[425205996,1781577054000,-19765.62,0.00028274,7]
[425205997,1781577054000,-521.04387466,0.00028301,2]
[425206000,1781577054000,-165.88213841,0.00028397,7]
[425205998,1781577054000,-521.04387466,0.00028306,2]
[425205999,1781577054000,-500.0,0.00028349,16]
[425206001,1781577054000,-1187.91,0.00028474,2]
[425206002,1781577054000,-152.0,0.00028499,12]
[425206003,1781577054000,-2126.56822831,0.000285,2]
[425206005,1781577054000,-2126.56822831,0.000285,2]
[425206006,1781577054000,-414.36883372,0.00028504,7]
[425206007,1781577054000,-300.62393935,0.00028504,7]
[425206011,1781577054000,-361.31844625,0.00028504,7]
[425206010,1781577054000,-218.03766203,0.00028504,7]
[425206008,1781577054000,-335.23635602,0.00028504,7]
[425206013,1781577054000,-316.47723303,0.00028504,7]
[425206014,1781577054000,-387.78366988,0.00028505,7]
[425206015,1781577054000,-380.85182062,0.00028505,7]
[425206012,1781577054000,-384.60478803,0.00028504,7]
[425206017,1781577054000,-417.81434232,0.00028505,7]
[425206016,1781577054000,-334.88843491,0.00028505,7]
[425205961,1781577054000,-6078.0,0.00027942,2]
[425205995,1781577054000,-1604.8,0.00028267,2]
[425205992,1781577054000,-501.37309986,0.00028251,2]
[425206004,1781577054000,-2126.56822831,0.000285,2]
[425205988,1781577054000,-521.04387466,0.00028199,2]
[425205965,1781577054000,-501.37309986,0.00027985,2]
[425205994,1781577054000,-521.04387466,0.00028256,2]
[425205966,1781577054000,-521.04387466,0.00027997,2]
[425205968,1781577054000,-643.0,0.00028,2]
[425205969,1781577054000,-190.42965785,0.00028,60]
[425205971,1781577054000,-600.0,0.00028,2]
[425205970,1781577054000,-8763.40173582,0.00028,2]
[425205973,1781577054000,-383.0,0.00028014,2]
[425205974,1781577054000,-1359.0,0.00028014,2]
[425205975,1781577054000,-1228.0,0.00028014,2]
[425205977,1781577054000,-500.0,0.00028064,2]
[425205976,1781577054000,-500.0,0.00028064,2]
[425205972,1781577054000,-152.0,0.00028007,11]
[425205989,1781577054000,-521.04387466,0.00028201,2]
[425205990,1781577054000,-521.04387466,0.00028202,2]
[425205978,1781577054000,-500.0,0.00028064,2]
[425205986,1781577054000,-521.04387466,0.00028171,2]
[425205987,1781577054000,-1187.91,0.0002818,2]
[425205979,1781577054000,-500.0,0.00028064,2]
[425205983,1781577054000,-278.69115301,0.00028064,2]
[425205981,1781577054000,-500.0,0.00028064,2]
[425205980,1781577054000,-500.0,0.00028064,2]
[425205985,1781577054000,-521.04387466,0.00028112,2]
[425205984,1781577054000,-521.04387466,0.00028067,2]
[425205982,1781577054000,-500.0,0.00028064,2]
[425206055,1781577055000,-327.19117477,0.00028528,7]
[425206054,1781577055000,-300.99585953,0.00028528,7]
[425206057,1781577055000,-300.44729655,0.00028528,7]
[425206058,1781577055000,-427.30044991,0.00028528,7]
[425206056,1781577055000,-197.67985986,0.00028528,5]
[425206044,1781577055000,-377.06021931,0.00028528,7]
[425206047,1781577055000,-245.53912411,0.00028528,7]
[425206049,1781577055000,-324.97887097,0.00028528,7]
[425206046,1781577055000,-356.42477492,0.00028528,5]
[425206053,1781577055000,-336.77329253,0.00028528,7]
[425206052,1781577055000,-371.38522638,0.00028528,7]
[425206059,1781577055000,-335.00168515,0.00028528,7]
[425206073,1781577055000,-184.29987156,0.000286,2]
[425206061,1781577055000,-348.28140149,0.00028528,7]
[425206060,1781577055000,-311.84371633,0.00028528,7]
[425206064,1781577055000,-2151.18,0.000286,7]
[425206074,1781577055000,-456.25,0.0002863,2]
[425206063,1781577055000,-351.44892641,0.00028528,7]
[425206071,1781577055000,-4344.15653374,0.000286,2]
[425206066,1781577055000,-2301.41350496,0.000286,2]
[425206065,1781577055000,-5978.0,0.000286,7]
[425206068,1781577055000,-2301.41350496,0.000286,2]
[425206067,1781577055000,-2301.41350496,0.000286,2]
[425206045,1781577055000,-310.45293848,0.00028528,7]
[425206062,1781577055000,-153.57279734,0.00028528,7]
[425206042,1781577055000,-404.32788013,0.00028528,7]
[425206018,1781577055000,-330.94509996,0.00028505,7]
[425206043,1781577055000,-196.96256927,0.00028528,7]
[425206072,1781577055000,-184.29987157,0.000286,2]
[425206026,1781577055000,-602.02396006,0.00028528,7]
[425206019,1781577055000,-305.99458789,0.00028505,7]
[425206020,1781577055000,-311.93801345,0.00028505,7]
[425206027,1781577055000,-319.27580518,0.00028528,7]
[425206028,1781577055000,-414.86229758,0.00028528,7]
[425206029,1781577055000,-340.72076175,0.00028528,7]
[425206022,1781577055000,-351.27496554,0.00028505,7]
[425206021,1781577055000,-321.44117474,0.00028505,7]
[425206023,1781577055000,-305.2017657,0.0002852,7]
[425206025,1781577055000,-316.3506467,0.00028528,2]
[425206024,1781577055000,-309.72890447,0.0002852,7]
[425206030,1781577055000,-335.32537311,0.00028528,7]
[425206040,1781577055000,-372.80567109,0.00028528,7]
[425206031,1781577055000,-354.60788886,0.00028528,7]
[425206038,1781577055000,-302.36295951,0.00028528,7]
[425206039,1781577055000,-327.55947525,0.00028528,7]
[425206034,1781577055000,-218.75734509,0.00028528,7]
[425206035,1781577055000,-349.1667175,0.00028528,7]
[425206032,1781577055000,-471.06638334,0.00028528,7]
[425206036,1781577055000,-312.74405468,0.00028528,7]
[425206033,1781577055000,-364.71013037,0.00028528,7]
[425206037,1781577055000,-414.72598951,0.00028528,7]
[425206041,1781577055000,-447.47053452,0.00028528,7]
[425206051,1781577055000,-346.34981609,0.00028528,7]
[425206050,1781577055000,-330.69835086,0.00028528,7]
[425206069,1781577055000,-4344.15653376,0.000286,2]
[425206048,1781577055000,-324.67543118,0.00028528,7]
[425206075,1781577055000,-559.63,0.0002863,2]
[425206107,1781577055000,-3215.67,0.00028797,7]
[425206108,1781577055000,-2256.83,0.00028797,7]
[425206105,1781577055000,-3235.06,0.00028797,7]
[425206109,1781577055000,-202.0,0.0002882,30]
[425206106,1781577055000,-1557.66,0.00028797,7]
[425206111,1781577055000,-1163.54,0.0002882,2]
[425206110,1781577055000,-1163.81,0.0002882,2]
[425206120,1781577055000,-2745.0,0.000289,7]
[425206115,1781577055000,-1163.54,0.00028883,30]
[425206117,1781577055000,-200.0,0.000289,2]
[425206114,1781577055000,-1163.81,0.00028883,30]
[425206116,1781577055000,-35422.05,0.000289,2]
[425206112,1781577055000,-1163.81,0.00028852,7]
[425206118,1781577055000,-21253.23,0.000289,2]
[425206119,1781577055000,-52975.1156492,0.000289,2]
[425206121,1781577055000,-7900.0,0.000289,10]
[425206123,1781577055000,-1163.54,0.00028915,2]
[425206124,1781577055000,-1500.0,0.00028943,15]
[425206126,1781577055000,-1835.383212,0.00028943,15]
[425206122,1781577055000,-1163.81,0.00028915,2]
[425206127,1781577055000,-1163.81,0.00028947,7]
[425206125,1781577055000,-1500.0,0.00028943,15]
[425206129,1781577055000,-555.36,0.00028964,2]
[425206130,1781577055000,-2321.54,0.00028964,2]
[425206070,1781577055000,-4344.15653374,0.000286,2]
[425206099,1781577055000,-158.57,0.00028767,53]
[425206104,1781577055000,-2321.54,0.00028797,7]
[425206113,1781577055000,-1163.54,0.00028852,7]
[425206100,1781577055000,-154.9947429,0.00028767,2]
[425206103,1781577055000,-555.36,0.00028797,7]
[425206085,1781577055000,-1163.54,0.00028661,7]
[425206084,1781577055000,-1163.81,0.00028661,7]
[425206078,1781577055000,-1163.81,0.0002863,2]
[425206081,1781577055000,-1557.66,0.0002863,30]
[425206080,1781577055000,-1163.54,0.0002863,2]
[425206082,1781577055000,-3215.67,0.0002863,30]
[425206077,1781577055000,-2321.54,0.0002863,30]
[425206079,1781577055000,-3235.06,0.0002863,30]
[425206083,1781577055000,-2256.83,0.0002863,30]
[425206097,1781577055000,-1512.25733552,0.00028767,30]
[425206087,1781577055000,-1163.54,0.00028693,30]
[425206086,1781577055000,-1163.81,0.00028693,30]
[425206076,1781577055000,-555.36,0.0002863,30]
[425206102,1781577055000,-1163.54,0.00028788,30]
[425206088,1781577055000,-2048.08,0.000287,7]
[425206101,1781577055000,-1163.81,0.00028788,30]
[425206098,1781577055000,-174.0,0.00028767,14]
[425206092,1781577055000,-575.0,0.00028739,3]
[425206093,1781577055000,-1163.81,0.00028756,7]
[425206128,1781577055000,-1163.54,0.00028947,7]
[425206096,1781577055000,-1553.62240062,0.00028767,2]
[425206091,1781577055000,-1163.54,0.00028725,2]